fUSD/lending_fUSD_20240629
["ID","MTS","AMOUNT","RATE_DAILY","PERIOD"]
[330614933,1719624691005,-500.0,0.00022136,3]
[330614934,1719624691016,-500.0,0.00022136,3]
[330614935,1719624691026,-977.27,0.00022136,3]
[330614936,1719624691036,-500.0,0.00022136,3]
[330614937,1719624691045,-981.24,0.00022136,3]
[330614938,1719624691055,-500.0,0.00022136,3]
[330614939,1719624691064,-974.78,0.00022136,3]
[330614940,1719624691074,-1714.27,0.00022136,3]
[330614941,1719624691083,-500.0,0.00022136,3]
[330614942,1719624691092,-576.48,0.00022136,3]
[330614943,1719624691102,-967.39,0.00022136,3]
[330614944,1719624691111,-1137.65,0.00022136,3]
[330614945,1719624691120,-500.0,0.00022136,3]
[330614946,1719624691129,-568.89,0.00022136,3]
[330614947,1719624691139,-500.0,0.00022136,3]
[330614948,1719624691148,-984.13,0.00022136,3]
[330614949,1719624691158,-500.0,0.00022136,3]
[330614950,1719624691168,-500.0,0.00022136,3]
[330614951,1719624691177,-500.0,0.00022136,3]
[330614952,1719624691187,-727.21,0.00022136,3]
[330614953,1719624691196,-1214.06,0.00022136,3]
[330614954,1719624691206,-500.0,0.00022136,3]
[330614955,1719624691215,-2780.98,0.00022136,3]
[330614956,1719624691224,-1193.36,0.00022136,3]
[330614957,1719624691234,-500.0,0.00022136,3]
[330614958,1719624691246,-759.71,0.00022136,3]
[330614959,1719624691256,-1297.69,0.00022136,3]
[330614960,1719624691266,-500.0,0.00022136,3]
[330614961,1719624691276,-500.0,0.00022136,3]
[330614962,1719624691286,-500.0,0.00022136,3]
[330614963,1719624691295,-500.0,0.00022136,3]
[330614964,1719624691305,-500.0,0.00022136,3]
[330614965,1719624691315,-500.0,0.00022136,3]
[330614966,1719624691325,-505.96,0.00022136,3]
[330614967,1719624691334,-500.0,0.00022136,3]
[330614968,1719624691344,-1124.22,0.00022136,3]
[330614969,1719624691359,-570.66,0.00022136,3]
[330614970,1719624691369,-500.0,0.00022136,3]
[330614971,1719624691379,-633.29,0.00022136,3]
[330614972,1719624691388,-845.43,0.00022136,3]
[330614973,1719624691397,-560.48,0.00022136,3]
[330614974,1719624691407,-1095.2,0.00022136,3]
[330614975,1719624691420,-500.0,0.00022136,3]
[330614976,1719624691429,-500.0,0.00022136,3]
[330614977,1719624691439,-500.0,0.00022136,3]
[330614978,1719624691450,-748.95,0.00022136,3]
[330614979,1719624691459,-500.0,0.00022136,3]
[330614980,1719624691469,-1324.14,0.00022136,3]
[330614981,1719624691479,-1453.57,0.00022136,3]
[330614982,1719624691489,-1852.58,0.00022136,3]
[330614983,1719624691498,-500.0,0.00022136,3]
[330614984,1719624691508,-500.0,0.00022136,3]
[330614985,1719624691517,-500.0,0.00022136,3]
[330614986,1719624691527,-1763.92,0.00022136,3]
[330614987,1719624691537,-4338.01,0.00022136,3]
[330614988,1719624691547,-5418.69,0.00022136,3]
[330614989,1719624691557,-1888.95,0.00022136,3]
[330614990,1719624691567,-500.0,0.00022136,3]
[330614991,1719624691576,-1136.46,0.00022136,3]
[330614992,1719624691586,-500.0,0.00022136,3]
[330614993,1719624691595,-500.0,0.00022136,3]
[330614994,1719624691604,-500.0,0.00022136,3]
[330614995,1719624691614,-547.65,0.00022136,3]
[330614996,1719624691624,-500.0,0.00022136,3]
[330614997,1719624691633,-1021.33,0.00022136,3]
[330614998,1719624691642,-500.0,0.00022136,3]
[330614999,1719624691652,-1168.6,0.00022136,3]
[330615000,1719624691661,-500.0,0.00022136,3]
[330615001,1719624691671,-1957.94,0.00022136,3]
[330615002,1719624691681,-500.0,0.00022136,3]
[330615003,1719624691691,-506.21,0.00022136,3]
[330615004,1719624691700,-500.0,0.00022136,3]
[330615005,1719624691710,-1780.68,0.00022136,3]
[330615006,1719624691720,-500.0,0.00022136,3]
[330615007,1719624691729,-1322.96,0.00022136,3]
[330615008,1719624691739,-366.67147614,0.00022136,3]
[330615009,1719624691748,-1583.67,0.00022136,3]
[330615010,1719624691758,-547.15,0.00022136,3]
[330615011,1719624691767,-2240.67,0.00022136,3]
[330615012,1719624691777,-966.47,0.00022136,3]
[330615013,1719624691786,-500.0,0.00022136,3]
[330615014,1719624691796,-1135.47,0.00022136,3]
[330615015,1719624691806,-712.47,0.00022136,3]
[330615016,1719624691815,-500.0,0.00022136,3]
[330615017,1719624691824,-500.0,0.00022136,3]
[330615018,1719624691834,-629.98,0.00022136,3]
[330615019,1719624691843,-500.0,0.00022136,3]
[330615020,1719624691853,-4477.0,0.00022136,3]
[330615021,1719624691862,-500.0,0.00022136,3]
[330615022,1719624691872,-1164.4,0.00022136,3]
[330615023,1719624691884,-500.0,0.00022136,3]
[330615024,1719624691894,-4088.66,0.00022136,3]
[330615025,1719624691903,-754.53,0.00022136,3]
[330615026,1719624691913,-1160.53,0.00022136,3]
[330615027,1719624691922,-500.0,0.00022136,3]
[330615028,1719624691932,-500.0,0.00022136,3]
[330615029,1719624691941,-968.77,0.00022136,3]
[330615030,1719624691951,-600.27,0.00022136,3]
[330615031,1719624691960,-3288.62,0.00022136,3]
[330615032,1719624691970,-894.99,0.00022136,3]
[330615033,1719624691979,-1212.59,0.00022136,3]
[330615034,1719624691988,-1000.94,0.00022136,3]
[330615035,1719624691998,-265.25859863,0.00022136,3]
[330615036,1719624692016,-1879.36,0.00022136,3]
[330615037,1719624692036,-880.93,0.00022136,3]
[330615038,1719624692050,-1375.65,0.00022136,3]
[330615039,1719624692065,-500.0,0.00022136,3]
[330615040,1719624692083,-1503.63,0.00022136,3]
[330615041,1719624692101,-500.0,0.00022136,3]
[330615042,1719624692117,-500.0,0.00022136,3]
[330615043,1719624692132,-2293.24,0.00022136,3]
[330615044,1719624692147,-919.92,0.00022136,3]
[330615045,1719624692163,-1260.45,0.00022136,3]
[330615046,1719624692176,-512.15,0.00022136,3]
[330615047,1719624692189,-500.0,0.00022136,3]
[330615048,1719624692204,-500.52010564,0.00022136,3]
[330615049,1719624692219,-500.0,0.00022136,3]
[330615050,1719624692236,-711.4,0.00022136,3]
[330615051,1719624692251,-500.0,0.00022136,3]
[330615052,1719624692262,-387.01523995,0.00022136,3]
[330615053,1719624692277,-1367.15,0.00022136,3]
[330615054,1719624692292,-3233.11,0.00022136,3]
[330615055,1719624692304,-500.0,0.00022136,3]
[330615056,1719624692319,-500.0,0.00022136,3]
[330615057,1719624692333,-500.0,0.00022136,3]
[330615058,1719624692345,-1221.28,0.00022136,3]
[330615059,1719624692363,-500.0,0.00022136,3]
[330615060,1719624692376,-1228.83,0.00022136,3]
[330615061,1719624692391,-500.0,0.00022136,3]
[330615062,1719624692404,-500.0,0.00022136,3]
[330615063,1719624692418,-4736.98,0.00022136,3]
[330615064,1719624692434,-2344.97,0.00022136,3]
[330615065,1719624692448,-500.0,0.00022136,3]
[330615066,1719624692461,-500.0,0.00022136,3]
[330615067,1719624692475,-500.0,0.00022136,3]
[330615068,1719624692488,-1327.87,0.00022136,3]
[330615069,1719624692502,-865.66,0.00022136,3]
[330615070,1719624692516,-639.25,0.00022136,3]
[330615071,1719624692529,-903.44,0.00022136,3]
[330615072,1719624692542,-765.2,0.00022136,3]
[330615073,1719624692556,-2478.46,0.00022136,3]
[330615074,1719624692568,-500.0,0.00022136,3]
[330615075,1719624692582,-724.72,0.00022136,3]
[330615076,1719624692596,-500.0,0.00022136,3]
[330615077,1719624692609,-1130.74,0.00022136,3]
[330615078,1719624692623,-608.62,0.00022136,3]
[330615079,1719624692636,-500.0,0.00022136,3]
[330615080,1719624692648,-1301.51,0.00022136,3]
[330615081,1719624692661,-2751.54,0.00022136,3]
[330615082,1719624692674,-754.96,0.00022136,3]
[330615083,1719624692687,-921.36,0.00022136,3]
[330615084,1719624692701,-1174.65,0.00022136,3]
[330615085,1719624692714,-749.66,0.00022136,3]
[330615086,1719624692727,-620.45,0.00022136,3]
[330615087,1719624692740,-507.8,0.00022136,3]
[330615088,1719624692754,-500.0,0.00022136,3]
[330615089,1719624692767,-974.62,0.00022136,3]
[330615090,1719624692780,-497.58008256,0.00022136,3]
[330615091,1719624692793,-1527.47,0.00022136,3]
[330615092,1719624692806,-1163.73,0.00022136,3]
[330615093,1719624692819,-500.0,0.00022136,3]
[330615094,1719624692832,-1804.78,0.00022136,3]
[330615095,1719624692845,-500.0,0.00022136,3]
[330615096,1719624692857,-772.94,0.00022136,3]
[330615097,1719624692870,-839.14,0.00022136,3]
[330615098,1719624692883,-902.36,0.00022136,3]
[330615099,1719624692896,-500.0,0.00022136,3]
[330615100,1719624692909,-1380.97,0.00022136,3]
[330615101,1719624692922,-500.0,0.00022136,3]
[330615102,1719624692935,-500.0,0.00022136,3]
[330615103,1719624692948,-500.0,0.00022136,3]
[330615104,1719624692961,-1160.23,0.00022136,3]
[330615105,1719624692974,-1029.12,0.00022136,3]
[330615106,1719624692987,-1141.72,0.00022136,3]
[330615107,1719624693000,-561.18,0.00022136,3]
[330615108,1719624693013,-500.0,0.00022136,3]
[330615109,1719624693025,-10528.0,0.00022136,3]
[330615110,1719624693037,-3611.32,0.00022136,3]
[330615111,1719624693050,-884.16,0.00022136,3]
[330615112,1719624693062,-657.66,0.00022136,3]
[330615113,1719624693075,-1253.72,0.00022136,3]
[330615114,1719624693089,-1596.0,0.00022136,3]
[330615115,1719624693102,-500.0,0.00022136,3]
[330615116,1719624693115,-913.6,0.00022136,3]
[330615117,1719624693128,-500.0,0.00022136,3]
[330615118,1719624693140,-539.8,0.00022136,3]
[330615119,1719624693153,-1243.17,0.00022136,3]
[330615120,1719624693166,-2734.83,0.00022136,3]
[330615121,1719624693179,-666.63,0.00022136,3]
[330615122,1719624693192,-500.0,0.00022136,3]
[330615123,1719624693205,-858.32,0.00022136,3]
[330615124,1719624693217,-500.0,0.00022136,3]
[330615125,1719624693230,-2881.65,0.00022136,3]
[330615126,1719624693243,-2950.95,0.00022136,3]
[330615127,1719624693256,-1102.31,0.00022136,3]
[330615128,1719624693268,-599.97,0.00022136,3]
[330615129,1719624693281,-500.0,0.00022136,3]
[330615130,1719624693293,-573.04,0.00022136,3]
[330615131,1719624693307,-3100.35,0.00022136,3]
[330615132,1719624693319,-1238.0,0.00022136,3]
[330615133,1719624693332,-500.0,0.00022136,3]
[330615134,1719624693345,-997.01,0.00022136,3]
[330615135,1719624693361,-1154.76,0.00022136,3]
[330615136,1719624693373,-1151.54,0.00022136,3]
[330615137,1719624693386,-500.0,0.00022136,3]
[330615138,1719624693398,-500.0,0.00022136,3]
[330615139,1719624693412,-500.0,0.00022136,3]
[330615140,1719624693424,-500.0,0.00022136,3]
[330615141,1719624693436,-957.42,0.00022136,3]
[330615142,1719624693450,-500.0,0.00022136,3]
[330615143,1719624693473,-500.0,0.00022136,3]
[330615144,1719624693487,-500.0,0.00022136,3]
[330615145,1719624693499,-2252.38,0.00022136,3]
[330615146,1719624693512,-500.0,0.00022136,3]
[330615147,1719624693524,-1048.64,0.00022136,3]
[330615148,1719624693537,-3833.58,0.00022136,3]
[330615149,1719624693550,-847.39,0.00022136,3]
[330615150,1719624693562,-976.22,0.00022136,3]
[330615151,1719624693575,-4549.24,0.00022136,3]
[330615152,1719624693588,-958.03,0.00022136,3]
[330615153,1719624693600,-500.0,0.00022136,3]
[330615154,1719624693612,-500.0,0.00022136,3]
[330615155,1719624693625,-859.51,0.00022136,3]
[330615156,1719624693637,-955.16,0.00022136,3]
[330615157,1719624693650,-715.53,0.00022136,3]
[330615158,1719624693662,-500.0,0.00022136,3]
[330615159,1719624693675,-500.0,0.00022136,3]
[330615160,1719624693687,-500.0,0.00022136,3]
[330615161,1719624693702,-1438.6,0.00022136,3]
[330615162,1719624693715,-500.0,0.00022136,3]
[330615163,1719624693728,-500.0,0.00022136,3]
[330615164,1719624693741,-500.0,0.00022136,3]
[330615165,1719624693754,-500.0,0.00022136,3]
[330615166,1719624693766,-500.0,0.00022136,3]
[330615167,1719624693780,-955.13,0.00022136,3]
[330615168,1719624693792,-832.58,0.00022136,3]
[330615169,1719624693804,-734.17,0.00022136,3]
[330615170,1719624693816,-1152.66,0.00022136,3]
[330615171,1719624693829,-7463.31,0.00022136,3]
[330615172,1719624693842,-500.0,0.00022136,3]
[330615173,1719624693853,-3259.77,0.00022136,3]
[330615174,1719624693866,-500.0,0.00022136,3]
[330615175,1719624693880,-524.3,0.00022136,3]
[330615176,1719624693892,-518.16,0.00022136,3]
[330615177,1719624693904,-733.59,0.00022136,3]
[330615178,1719624693917,-1989.77,0.00022136,3]
[330615179,1719624693930,-437.75378239,0.00022136,3]
[330615180,1719624693943,-1076.15,0.00022136,3]
[330615181,1719624693957,-437.08311803,0.00022136,3]
[330615182,1719624693969,-526.94,0.00022136,3]
[330615183,1719624693981,-500.0,0.00022136,3]
[330615184,1719624693993,-500.0,0.00022136,3]
[330615185,1719624694007,-2136.24,0.00022136,3]
[330615186,1719624694020,-1078.91,0.00022136,3]
[330615187,1719624694032,-500.0,0.00022136,3]
[330615188,1719624694045,-1209.59,0.00022136,3]
[330615189,1719624694058,-1384.39,0.00022136,3]
[330615190,1719624694071,-1004.41,0.00022136,3]
[330615191,1719624694083,-668.92,0.00022136,3]
[330615192,1719624694096,-500.0,0.00022136,3]
[330615193,1719624694109,-500.0,0.00022136,3]
[330615194,1719624694122,-500.0,0.00022136,3]
[330615195,1719624694135,-3169.0,0.00022136,3]
[330615196,1719624694147,-1583.74,0.00022136,3]
[330615197,1719624694161,-39648.0,0.00022136,3]
[330615198,1719624694174,-4295.14,0.00022136,3]
[330615199,1719624694187,-500.0,0.00022136,3]
[330615200,1719624694201,-500.0,0.00022136,3]
[330615201,1719624694215,-1043.71,0.00022136,3]
[330615202,1719624694228,-500.0,0.00022136,3]
[330615203,1719624694241,-500.0,0.00022136,3]
[330615204,1719624694255,-500.0,0.00022136,3]
[330615205,1719624694268,-500.0,0.00022136,3]
[330615206,1719624694282,-879.55,0.00022136,3]
[330615207,1719624694294,-875.07,0.00022136,3]
[330615208,1719624694308,-717.04,0.00022136,3]
[330615209,1719624694320,-3979.85,0.00022136,3]
[330615210,1719624694334,-500.0,0.00022136,3]
[330615211,1719624694346,-724.25,0.00022136,3]
[330615212,1719624694361,-1495.61,0.00022136,3]
[330615213,1719624694374,-500.0,0.00022136,3]
[330615214,1719624694387,-1446.97,0.00022136,3]
[330615215,1719624694401,-1966.0,0.00022136,3]
[330615216,1719624694414,-2929.84,0.00022136,3]
[330615217,1719624694428,-500.0,0.00022136,3]
[330615218,1719624694442,-500.0,0.00022136,3]
[330615219,1719624694459,-500.0,0.00022136,3]
[330615220,1719624694473,-500.0,0.00022136,3]
[330615221,1719624694485,-7736.62,0.00022136,3]
[330615222,1719624694498,-500.0,0.00022136,3]
[330615223,1719624694511,-1527.33,0.00022136,3]
[330615224,1719624694524,-500.0,0.00022136,3]
[330615225,1719624694537,-725.11,0.00022136,3]
[330615226,1719624694549,-1633.64,0.00022136,3]
[330615227,1719624694561,-585.53,0.00022136,3]
[330615228,1719624694574,-1130.0,0.00022136,3]
[330615229,1719624694587,-713.03,0.00022136,3]
[330615230,1719624694599,-2883.25,0.00022136,3]
[330615231,1719624694612,-665.18,0.00022136,3]
[330615232,1719624694624,-500.0,0.00022136,3]
[330615233,1719624694636,-500.0,0.00022136,3]
[330615234,1719624694649,-2056.71,0.00022136,3]
[330615235,1719624694662,-500.0,0.00022136,3]
[330615236,1719624694675,-2369.73,0.00022136,3]
[330615237,1719624694688,-1665.41,0.00022136,3]
[330615238,1719624694702,-3455.43,0.00022136,3]
[330615239,1719624694715,-2667.61,0.00022136,3]
[330615240,1719624694728,-5971.31,0.00022136,3]
[330615241,1719624694742,-656.27,0.00022136,3]
[330615242,1719624694755,-5568.09,0.00022136,3]
[330615243,1719624694768,-500.0,0.00022136,3]
[330615244,1719624694781,-942.6,0.00022136,3]
[330615245,1719624694795,-500.0,0.00022136,3]
[330615246,1719624694807,-5813.02,0.00022136,3]
[330615247,1719624694821,-500.0,0.00022136,3]
[330615248,1719624694834,-386.31,0.00022136,7]
[330615249,1719624694847,-500.0,0.00022136,3]
[330615250,1719624694860,-1015.65,0.00022136,3]
[330615251,1719624694873,-500.0,0.00022136,3]
[330615252,1719624694886,-2677.05,0.00022136,3]
[330615253,1719624694898,-1920.59,0.00022136,3]
[330615254,1719624694912,-500.0,0.00022136,3]
[330615255,1719624694925,-1497.98,0.00022136,3]
[330615256,1719624694938,-1658.78,0.00022136,3]
[330615257,1719624694953,-934.33,0.00022136,3]
[330615258,1719624694965,-2535.07,0.00022136,3]
[330615259,1719624694978,-500.0,0.00022136,3]
[330615260,1719624694992,-500.0,0.00022136,3]
[330615261,1719624695005,-924.97,0.00022136,3]
[330615262,1719624695018,-500.0,0.00022136,3]
[330615263,1719624695031,-4996.16,0.00022136,3]
[330615264,1719624695043,-1216.48,0.00022136,3]
[330615265,1719624695056,-500.0,0.00022136,3]
[330615266,1719624695069,-866.1,0.00022136,3]
[330615267,1719624695081,-500.0,0.00022136,3]
[330615268,1719624695095,-500.0,0.00022136,3]
[330615269,1719624695108,-1306.34,0.00022136,3]
[330615270,1719624695121,-1165.04,0.00022136,3]
[330615271,1719624695134,-500.0,0.00022136,3]
[330615272,1719624695146,-500.0,0.00022136,3]
[330615273,1719624695158,-1128.53,0.00022136,3]
[330615274,1719624695171,-500.0,0.00022136,3]
[330615275,1719624695184,-977.6,0.00022136,3]
[330615276,1719624695196,-1607.59,0.00022136,3]
[330615277,1719624695216,-500.0,0.00022136,3]
[330615278,1719624695229,-500.0,0.00022136,3]
[330615279,1719624695243,-542.64,0.00022136,3]
[330615280,1719624695256,-1178.67,0.00022136,3]
[330615281,1719624695743,-82815.7,0.00022136,3]
[330615282,1719624695777,-2467.56,0.00022136,3]
[330615283,1719624695795,-1028.31,0.00022136,3]
[330615284,1719624695805,-510.86,0.00022136,3]
[330615285,1719624695814,-1435.99,0.00022136,3]
[330615286,1719624695823,-1395.77,0.00022136,3]
[330615287,1719624695832,-500.0,0.00022136,3]
[330615288,1719624695841,-1712.86,0.00022136,3]
[330615289,1719624695851,-904.45,0.00022136,3]
[330615290,1719624695860,-3921.06,0.00022136,3]
[330615291,1719624695870,-1369.88,0.00022136,3]
[330615292,1719624695879,-500.0,0.00022136,3]
[330615293,1719624695888,-871.37,0.00022136,3]
[330615294,1719624695897,-1996.92,0.00022136,3]
[330615295,1719624695907,-500.0,0.00022136,3]
[330615296,1719624695917,-2605.61,0.00022136,3]
[330615297,1719624695926,-502.75,0.00022136,3]
[330615298,1719624695935,-500.0,0.00022136,3]
[330615299,1719624695944,-1416.94,0.00022136,3]
[330615300,1719624695954,-594.92,0.00022136,3]
[330615301,1719624695963,-8149.31,0.00022136,3]
[330615302,1719624695972,-1167.13,0.00022136,3]
[330615303,1719624695982,-1105.45,0.00022136,3]
[330615304,1719624695991,-500.0,0.00022136,3]
[330615305,1719624696000,-4346.28,0.00022136,3]
[330615306,1719624696008,-1960.55,0.00022136,3]
[330615307,1719624696018,-2519.59,0.00022136,3]
[330615308,1719624696027,-2359.31,0.00022136,3]
[330615309,1719624696035,-562.56,0.00022136,3]
[330615310,1719624696045,-500.0,0.00022136,3]
[330615311,1719624696054,-1673.78,0.00022136,3]
[330615312,1719624696063,-500.0,0.00022136,3]
[330615313,1719624696072,-2458.01,0.00022136,3]
[330615314,1719624696083,-3979.33,0.00022136,3]
[330615315,1719624696092,-500.0,0.00022136,3]
[330615316,1719624696101,-732.41,0.00022136,3]
[330615317,1719624696110,-261.80795142,0.00022136,3]
[330615318,1719624696119,-9123.39,0.00022136,3]
[330615319,1719624696129,-500.0,0.00022136,3]
[330615320,1719624696138,-675.72,0.00022136,3]
[330615321,1719624696147,-500.0,0.00022136,3]
[330615322,1719624696156,-1058.26,0.00022136,3]
[330615323,1719624696165,-770.98,0.00022136,3]
[330615324,1719624696174,-2537.17,0.00022136,3]
[330615325,1719624696184,-4114.85,0.00022136,3]
[330615326,1719624696193,-1457.73,0.00022136,3]
[330615327,1719624696203,-1024.57,0.00022136,3]
[330615328,1719624696212,-2257.8,0.00022136,3]
[330615329,1719624696222,-500.0,0.00022136,3]
[330615330,1719624696231,-654.51,0.00022136,3]
[330615331,1719624696240,-686.64,0.00022136,3]
[330615332,1719624696249,-550.06,0.00022136,3]
[330615333,1719624696259,-660.14,0.00022136,3]
[330615334,1719624696269,-1439.04,0.00022136,3]
[330615335,1719624696278,-500.0,0.00022136,3]
[330615336,1719624696287,-500.0,0.00022136,3]
[330615337,1719624696297,-500.0,0.00022136,3]
[330615338,1719624696306,-500.0,0.00022136,3]
[330615339,1719624696316,-1575.94,0.00022136,3]
[330615340,1719624696326,-1344.97,0.00022136,3]
[330615341,1719624696336,-2873.45,0.00022136,3]
[330615342,1719624696345,-931.37,0.00022136,3]
[330615343,1719624696358,-4425.19,0.00022136,3]
[330615344,1719624696368,-1279.74,0.00022136,3]
[330615345,1719624696377,-590.13,0.00022136,3]
[330615346,1719624696387,-3034.13,0.00022136,3]
[330615347,1719624696397,-2840.32,0.00022136,3]
[330615348,1719624696406,-1432.57,0.00022136,3]
[330615349,1719624696415,-747.41,0.00022136,3]
[330615350,1719624696424,-500.0,0.00022136,3]
[330615351,1719624696436,-500.0,0.00022136,3]
[330615352,1719624696447,-500.0,0.00022136,3]
[330615353,1719624696456,-575.88,0.00022136,3]
[330615354,1719624696465,-624.67,0.00022136,3]
[330615355,1719624696474,-1104.61,0.00022136,3]
[330615356,1719624696483,-1051.8,0.00022136,3]
[330615357,1719624696493,-1087.6,0.00022136,3]
[330615358,1719624696502,-580.52,0.00022136,3]
[330615359,1719624696511,-500.0,0.00022136,3]
[330615360,1719624696520,-500.0,0.00022136,3]
[330615361,1719624696530,-892.89,0.00022136,3]
[330615362,1719624696539,-1210.62,0.00022136,3]
[330615363,1719624696548,-500.0,0.00022136,3]
[330615364,1719624696558,-940.78,0.00022136,3]
[330615365,1719624696567,-650.5,0.00022136,3]
[330615366,1719624696577,-2956.44,0.00022136,3]
[330615367,1719624696586,-2588.95,0.00022136,3]
[330615368,1719624696596,-2870.13,0.00022136,3]
[330615369,1719624696605,-792.35,0.00022136,3]
[330615370,1719624696614,-811.03,0.00022136,3]
[330615371,1719624696624,-500.0,0.00022136,3]
[330615372,1719624696633,-1824.11,0.00022136,3]
[330615373,1719624696642,-4588.23,0.00022136,3]
[330615374,1719624696651,-500.0,0.00022136,3]
[330615375,1719624696660,-1446.17,0.00022136,3]
[330615376,1719624696669,-500.0,0.00022136,3]
[330615377,1719624696678,-1491.07,0.00022136,3]
[330615378,1719624696687,-4619.97,0.00022136,3]
[330615379,1719624696698,-500.0,0.00022136,3]
[330615380,1719624696707,-3567.41,0.00022136,3]
[330615381,1719624696718,-1743.36,0.00022136,3]
[330615382,1719624696727,-2760.69,0.00022136,3]
[330615383,1719624696738,-1706.74,0.00022136,3]
[330615384,1719624696747,-648.32,0.00022136,3]
[330615385,1719624696758,-500.0,0.00022136,3]
[330615386,1719624696769,-2866.52,0.00022136,3]
[330615387,1719624696778,-958.45,0.00022136,3]
[330615388,1719624696788,-1017.33,0.00022136,3]
[330615389,1719624696798,-500.0,0.00022136,3]
[330615390,1719624696808,-3535.8,0.00022136,3]
[330615391,1719624696818,-607.37,0.00022136,3]
[330615392,1719624696827,-500.0,0.00022136,3]
[330615393,1719624696837,-1758.97,0.00022136,3]
[330615394,1719624696846,-500.0,0.00022136,3]
[330615395,1719624696855,-3320.18,0.00022136,3]
[330615396,1719624696865,-969.18,0.00022136,3]
[330615397,1719624696874,-822.41,0.00022136,3]
[330615398,1719624696883,-500.0,0.00022136,3]
[330615399,1719624696892,-500.0,0.00022136,3]
[330615400,1719624696902,-2260.43,0.00022136,3]
[330615401,1719624696911,-1098.93,0.00022136,3]
[330615402,1719624696921,-833.7,0.00022136,3]
[330615403,1719624696931,-500.0,0.00022136,3]
[330615404,1719624696940,-500.0,0.00022136,3]
[330615405,1719624696951,-880.7,0.00022136,3]
[330615406,1719624696959,-500.0,0.00022136,3]
[330615407,1719624696968,-500.0,0.00022136,3]
[330615408,1719624696978,-1981.42,0.00022136,3]
[330615409,1719624696987,-2610.65,0.00022136,3]
[330615410,1719624696996,-1034.91,0.00022136,3]
[330615411,1719624697005,-3817.82,0.00022136,3]
[330615412,1719624697014,-500.0,0.00022136,3]
[330615413,1719624697024,-500.0,0.00022136,3]
[330615414,1719624697033,-924.99,0.00022136,3]
[330615415,1719624697043,-562.25,0.00022136,3]
[330615416,1719624697052,-500.0,0.00022136,3]
[330615417,1719624697062,-500.0,0.00022136,3]
[330615418,1719624697070,-500.0,0.00022136,3]
[330615419,1719624697080,-1404.17,0.00022136,3]
[330615420,1719624697089,-684.56,0.00022136,3]
[330615421,1719624697098,-1120.09,0.00022136,3]
[330615422,1719624697107,-500.0,0.00022136,3]
[330615423,1719624697117,-500.0,0.00022136,3]
[330615424,1719624697126,-1440.61,0.00022136,3]
[330615425,1719624697135,-2523.79,0.00022136,3]
[330615426,1719624697144,-5350.62,0.00022136,3]
[330615427,1719624697153,-4196.26,0.00022136,3]
[330615428,1719624697162,-500.0,0.00022136,3]
[330615429,1719624697172,-2025.88,0.00022136,3]
[330615430,1719624697181,-807.3,0.00022136,3]
[330615431,1719624697190,-500.0,0.00022136,3]
[330615432,1719624697201,-278.52030884,0.00022136,3]